bitfinex-derivatives/quotes_BTCF0:USTF0_20250620
["timestamp","ask_amount","ask_price","bid_price","bid_amount"]
[1750441914706,0.1943476,102900.0,102890.0,0.00097186]
[1750441914909,1.448557,102900.0,102890.0,0.00097186]
[1750441915304,1.59440692,102900.0,102890.0,0.00097186]
[1750441915504,0.1943854,102880.0,102870.0,0.0008]
[1750441915806,0.1944043,102870.0,102860.0,0.83760146]
[1750441916006,0.1944043,102870.0,102860.0,0.91888446]
[1750441916213,0.64212497,102880.0,102870.0,0.1944043]
[1750441916411,1.35696497,102880.0,102870.0,1.4494137]
[1750441916610,0.49992497,102880.0,102870.0,1.4494137]
[1750441916813,0.49992497,102880.0,102870.0,1.0886137]
[1750441917011,0.49992497,102880.0,102870.0,1.4494137]
[1750441917407,0.49992497,102880.0,102870.0,0.4852043]
[1750441917804,0.49992497,102880.0,102870.0,0.4892043]
[1750441918510,0.86072497,102880.0,102870.0,0.2988]
[1750441919016,0.99972497,102880.0,102870.0,0.008]
[1750441919210,1.60313437,102880.0,102870.0,0.008]
[1750441919422,0.63892497,102880.0,102870.0,0.0084]
[1750441919604,0.99972497,102880.0,102870.0,0.0084]
[1750441920506,1.60313437,102880.0,102870.0,0.0084]
[1750441920711,0.99972497,102880.0,102870.0,0.0084]
[1750441920915,1.60313437,102880.0,102870.0,0.008]
[1750441921117,1.60313437,102880.0,102870.0,0.0084]
[1750441921320,1.60313437,102880.0,102870.0,0.008]
[1750441921511,0.1944044,102870.0,102860.0,0.01856126]
[1750441921712,0.1944611,102840.0,102830.0,0.30399213]
[1750441921912,0.57105667,102840.0,102830.0,0.85808728]
[1750441922109,0.69695667,102840.0,102830.0,0.85808728]
[1750441922414,1.42706607,102840.0,102830.0,0.00099268]
[1750441922806,0.82365667,102840.0,102830.0,0.00059268]
[1750441923009,1.42706607,102840.0,102830.0,0.00099268]
[1750441923216,1.31757667,102840.0,102830.0,0.00099268]
[1750441923518,2.28178607,102840.0,102830.0,0.00999268]
[1750441923716,0.0486208,102830.0,102800.0,0.00097272]
[1750441923925,0.0486208,102830.0,102780.0,0.2499]
[1750441923926,0.1945564,102790.0,102780.0,0.2499]
[1750441924112,0.57161613,102790.0,102780.0,0.2499]
[1750441924618,0.57161613,102790.0,102780.0,0.2503]
[1750441924619,1.17502553,102790.0,102780.0,0.2503]
[1750441924820,1.43062553,102790.0,102780.0,0.0004]
[1750441925013,1.18801613,102790.0,102780.0,0.0004]
[1750441925320,0.1945769,102780.0,102770.0,0.000973]
[1750441925617,0.8193769,102780.0,102770.0,0.01491305]
[1750441925815,0.4585769,102780.0,102770.0,0.01491305]
[1750441926014,0.1945769,102780.0,102770.0,0.01571305]
[1750441926218,0.5553769,102780.0,102770.0,0.32231305]
[1750441926418,0.76597962,102780.0,102770.0,0.308373]
[1750441926619,0.89937962,102780.0,102770.0,0.308773]
[1750441926914,0.89937962,102780.0,102770.0,0.258773]
[1750441927115,1.69738902,102780.0,102770.0,0.001373]
[1750441927323,1.61258533,102780.0,102770.0,0.000973]
[1750441927617,0.21076997,102770.0,102760.0,0.0008]
[1750441927812,1.43807937,102770.0,102760.0,0.0008]
[1750441928020,1.55648997,102770.0,102760.0,0.0008]
[1750441928209,0.01617417,102770.0,102760.0,1.1034239]
[1750441928409,0.21076977,102770.0,102760.0,0.3054]
[1750441928616,0.21076977,102770.0,102760.0,0.3058]
[1750441928808,0.01617417,102770.0,102760.0,0.8612145]
[1750441929012,0.1955859,102780.0,102770.0,0.01750827]
[1750441929215,0.001,102780.0,102770.0,1.42171327]
[1750441929413,0.011,102780.0,102770.0,1.44171327]
[1750441929617,0.001,102780.0,102770.0,1.69403327]
[1750441929818,0.30810163,102790.0,102770.0,1.74268197]
[1750441930015,0.01625973,102790.0,102780.0,1.1587861]
[1750441930217,0.3608,102820.0,102790.0,0.0486355]
[1750441930415,0.06474977,102820.0,102800.0,0.85852]
[1750441930613,0.1945199,102810.0,102800.0,0.4608]
[1750441930820,0.1945199,102810.0,102800.0,0.71312]
[1750441931319,0.1945199,102810.0,102800.0,0.61312]
[1750441931519,0.93049477,102820.0,102800.0,1.5083364]
[1750441931720,0.66869477,102820.0,102810.0,0.1945197]
[1750441931915,0.62122712,102830.0,102810.0,1.1100957]
[1750441932121,0.62122712,102830.0,102810.0,1.275976]
[1750441932122,0.66985222,102830.0,102810.0,1.275976]
[1750441932320,0.2431278,102820.0,102800.0,1.50900953]
[1750441932630,0.2917555,102820.0,102810.0,0.5553197]
[1750441932820,0.1945008,102820.0,102810.0,0.5553197]
[1750441933324,0.1945008,102820.0,102810.0,0.3608]
[1750441933518,0.1945008,102820.0,102800.0,1.62401691]
[1750441933711,0.1975008,102820.0,102800.0,0.5912]
[1750441933914,0.5553197,102810.0,102800.0,0.0004]
[1750441934118,1.4070291,102810.0,102800.0,0.0004]
[1750441934317,0.1945763,102780.0,102770.0,0.62073104]
[1750441934521,0.1945763,102780.0,102770.0,0.28732164]
[1750441935026,0.5553763,102780.0,102770.0,0.28772164]
[1750441935420,1.1587857,102780.0,102770.0,0.01772164]
[1750441935617,1.4079857,102780.0,102770.0,0.01772164]
[1750441935819,0.8045763,102780.0,102770.0,0.01732164]
[1750441936019,1.4079857,102780.0,102770.0,0.01772164]
[1750441936825,1.42408035,102780.0,102770.0,0.0034]
[1750441937827,2.27472035,102780.0,102770.0,0.003]
[1750441938120,2.27472035,102780.0,102770.0,1e-07]
[1750441938121,2.59472035,102780.0,102770.0,1e-07]
[1750441938319,0.1946188,102760.0,102750.0,0.61316]
[1750441938523,0.1946188,102760.0,102750.0,0.61396]
[1750441938717,0.9238282,102760.0,102750.0,0.61396]
[1750441938922,1.4086282,102760.0,102750.0,0.25316]
[1750441939114,1.4086282,102760.0,102750.0,0.0008]
[1750441939319,0.1946377,102750.0,102740.0,1.14629625]
[1750441939520,0.5554377,102750.0,102740.0,1.50709625]
[1750441939919,0.5554377,102750.0,102740.0,0.89473625]
[1750441939920,1.1588471,102750.0,102740.0,0.89473625]
[1750441940225,1.4179471,102750.0,102740.0,0.87657328]
[1750441940420,1.4179471,102750.0,102740.0,0.88057328]
[1750441940621,1.4179471,102750.0,102740.0,0.88597328]
[1750441940821,1.4179471,102750.0,102740.0,0.00997328]
[1750441941021,1.4179471,102750.0,102740.0,0.00637328]
[1750441941224,1.4179471,102750.0,102740.0,0.00597328]
[1750441941423,1.4179471,102750.0,102740.0,0.00137328]
[1750441941623,0.8145377,102750.0,102740.0,0.00197328]
[1750441941817,1.4179471,102750.0,102740.0,0.00237328]
[1750441942725,0.1946764,102730.0,102720.0,0.0008]
[1750441942927,0.5554764,102730.0,102720.0,0.0008]
[1750441943125,0.8037764,102730.0,102720.0,0.0008]
[1750441943428,0.8037764,102730.0,102710.0,0.24436337]
[1750441943429,0.1946953,102720.0,102710.0,0.44888787]
[1750441943727,0.5554953,102720.0,102710.0,0.80888787]
[1750441943923,0.3608,102720.0,102710.0,0.80888787]
[1750441944117,0.01587704,102730.0,102720.0,0.1946953]
[1750441944317,0.57135344,102730.0,102720.0,0.192]
[1750441944520,0.21055344,102730.0,102720.0,0.192]
[1750441944725,0.57135344,102730.0,102720.0,0.192]
[1750441944926,0.82175344,102730.0,102720.0,0.192]
[1750441945122,0.8058764,102730.0,102720.0,0.192]
[1750441945527,0.8058764,102730.0,102720.0,0.1924]
[1750441945528,0.5554764,102730.0,102720.0,0.1924]
[1750441945737,0.1946764,102730.0,102720.0,0.9905047]
[1750441946031,0.01613562,102740.0,102730.0,0.1946764]
[1750441946236,0.2433086,102750.0,102730.0,0.8041426]
[1750441946429,0.3406376,102750.0,102730.0,1.5048885]
[1750441946629,0.1946573,102740.0,102730.0,1.407552]
[1750441946837,0.16225269,102750.0,102730.0,0.852811]
[1750441947040,0.1946573,102740.0,102730.0,1.4562204]
[1750441947237,0.1946573,102740.0,102730.0,0.4433426]
[1750441947437,0.1946573,102740.0,102730.0,0.9980858]
[1750441947738,0.1946573,102740.0,102730.0,1.3588858]
[1750441947938,0.52505269,102750.0,102730.0,0.8041431]
[1750441948136,0.1946573,102740.0,102730.0,0.45248]
[1750441948341,0.1946763,102730.0,102720.0,0.37845035]
[1750441948636,0.60318969,102750.0,102730.0,0.2433437]
[1750441948830,0.35888644,102750.0,102730.0,2.5364215]
[1750441949140,0.35888644,102750.0,102740.0,0.1269]
[1750441949342,0.21290004,102750.0,102740.0,0.3215572]
[1750441949536,0.57370004,102750.0,102740.0,0.1769]
[1750441949741,0.57370004,102750.0,102740.0,0.3715572]
[1750441949944,0.57170004,102750.0,102740.0,0.1769]
[1750441950453,0.57370004,102750.0,102740.0,0.1769]
[1750441950639,0.57870004,102750.0,102740.0,0.2977]
[1750441950844,0.57870004,102750.0,102740.0,0.4923572]
[1750441951046,0.57870004,102750.0,102740.0,0.2977]
[1750441952443,0.33690004,102750.0,102740.0,0.2977]
[1750441952644,0.69770004,102750.0,102740.0,0.2977]
[1750441954154,0.81880004,102750.0,102740.0,0.05]
[1750441954354,1.42220944,102750.0,102740.0,0.05]
[1750441954650,1.42220944,102750.0,102740.0,0.25252]
[1750441954851,1.42220944,102750.0,102730.0,0.25252]
[1750441954852,0.2919934,102740.0,102730.0,0.25252]
[1750441955055,0.9519618,102740.0,102730.0,0.29332]
[1750441955246,0.9519618,102740.0,102730.0,0.29252]
[1750441955448,0.2919934,102740.0,102730.0,1.0910058]
[1750441955754,0.25394751,102750.0,102730.0,1.4401415]
[1750441955951,0.1946575,102740.0,102730.0,1.8191415]
[1750441956443,0.002,102740.0,102730.0,1.8191415]
[1750441956850,0.36305391,102750.0,102730.0,1.6731333]
[1750441957051,0.36305391,102750.0,102740.0,0.6034094]
[1750441957254,0.36305391,102750.0,102740.0,0.14]
[1750441958351,0.36105391,102750.0,102740.0,0.14]
[1750441958752,0.36305391,102750.0,102740.0,0.14]
[1750441959154,0.61405391,102750.0,102740.0,0.14]
[1750441960265,1.57826331,102750.0,102740.0,0.3882]
[1750441960557,1.57826331,102750.0,102740.0,0.2482]
[1750441960748,0.1946764,102730.0,102720.0,1.28505069]
[1750441960948,0.4658766,102740.0,102730.0,0.1954764]
[1750441961148,0.4172081,102740.0,102730.0,0.9788858]
[1750441961557,0.4172081,102740.0,102730.0,0.7842094]
[1750441962157,0.1966728,102740.0,102730.0,1.2270858]
[1750441962362,0.1966728,102740.0,102730.0,1.25590199]
[1750441962557,0.1966728,102740.0,102730.0,1.06122559]
[1750441962858,0.1966728,102740.0,102730.0,1.25590199]
[1750441963057,0.1966728,102740.0,102730.0,1.61670199]
[1750441963355,0.002,102740.0,102730.0,1.83409333]
[1750441963652,0.4094524,102770.0,102730.0,2.34643753]
[1750441963850,0.9540604,102770.0,102750.0,0.68182106]
[1750441964058,0.6527179,102770.0,102760.0,0.8516094]
[1750441964356,0.6040642,102770.0,102760.0,1.08531046]
[1750441964552,0.6040642,102770.0,102760.0,0.89069086]
[1750441964759,0.6060642,102770.0,102760.0,0.28728146]
[1750441965457,0.6130642,102770.0,102760.0,0.28728146]
[1750441965658,0.2572642,102770.0,102760.0,0.89069086]
[1750441965853,0.6180642,102770.0,102760.0,0.28728146]
[1750441966151,0.014,102770.0,102760.0,2.93150643]
[1750441966360,0.014,102770.0,102760.0,3.3377431]
[1750441966555,0.014,102770.0,102760.0,3.30866164]
[1750441966858,0.014,102770.0,102760.0,2.70525224]
[1750441967755,0.014,102770.0,102760.0,3.30866164]
[1750441967950,0.014,102770.0,102760.0,3.36650413]
[1750441968150,0.014,102770.0,102760.0,3.30866164]
[1750441968551,0.014,102770.0,102760.0,3.50327763]
[1750441968757,0.014,102770.0,102760.0,3.58088269]
[1750441968962,0.4126356,102800.0,102780.0,0.2918614]
[1750441969154,0.3147596,102800.0,102790.0,0.7979721]
[1750441969357,0.3147596,102800.0,102790.0,1.4571721]
[1750441969661,0.1202,102800.0,102790.0,1.3445321]
[1750441969955,0.001,102830.0,102820.0,0.194506]
[1750441970151,0.001,102830.0,102820.0,1.8060894]
[1750441970152,0.195487,102830.0,102820.0,1.8060894]
[1750441970350,0.314687,102830.0,102820.0,2.0060894]
[1750441970657,0.314687,102830.0,102820.0,1.28898]
[1750441970956,0.314687,102830.0,102820.0,2.71830147]
[1750441970957,0.001,102830.0,102820.0,2.71830147]
[1750441971160,0.001,102830.0,102820.0,2.99546934]
[1750441971353,0.004,102830.0,102820.0,2.39205994]
[1750441971553,0.004,102830.0,102820.0,3.59887874]
[1750441971751,0.01588449,102850.0,102840.0,0.1944688]
[1750441971950,0.01550474,102850.0,102840.0,2.1919876]
[1750441972156,0.01550474,102850.0,102840.0,3.2276916]
[1750441972359,0.01550474,102850.0,102840.0,3.3586916]
[1750441972561,0.01550474,102850.0,102840.0,2.5174516]
[1750441972759,0.01550474,102850.0,102840.0,3.3586116]
[1750441972957,0.21095354,102850.0,102840.0,1.5251094]
[1750441973159,0.57175354,102850.0,102840.0,1.8237294]
[1750441973367,0.82325354,102850.0,102840.0,1.5756894]
[1750441973565,0.46245354,102850.0,102840.0,1.5756894]
[1750441973766,0.46245354,102850.0,102840.0,1.62545278]
[1750441974067,0.82325354,102850.0,102840.0,0.6038094]
[1750441974265,0.1944866,102830.0,102820.0,2.66157147]
[1750441974559,0.5552866,102830.0,102820.0,0.88751172]
[1750441974767,0.6752866,102830.0,102820.0,0.86913172]
[1750441975064,0.9363866,102830.0,102820.0,0.86953172]
[1750441975663,0.9383866,102830.0,102820.0,0.86953172]
[1750441975960,0.5775866,102830.0,102820.0,0.86953172]
[1750441976164,0.9383866,102830.0,102820.0,0.26612232]
[1750441976360,0.5785866,102830.0,102820.0,0.86953172]
[1750441976959,0.9393866,102830.0,102820.0,0.26612232]
[1750441977264,0.9393866,102830.0,102820.0,0.86953172]
[1750441977866,0.9393866,102830.0,102820.0,0.26612232]
[1750441978067,0.9393866,102830.0,102820.0,0.86953172]
[1750441978668,0.9393866,102830.0,102820.0,0.26612232]
[1750441978863,0.9393866,102830.0,102820.0,0.86953172]
[1750441979469,0.9393866,102830.0,102820.0,0.7938094]
[1750441979765,0.1945055,102820.0,102810.0,0.83892]
[1750441979959,0.1945245,102810.0,102800.0,1.2299831]
[1750441980160,0.4364245,102810.0,102800.0,1.9379431]
[1750441980359,0.7972245,102810.0,102800.0,1.0864537]
[1750441980563,0.7972245,102810.0,102800.0,0.2481737]
[1750441980763,0.7972245,102810.0,102800.0,0.6411831]
[1750441981064,1.4006339,102810.0,102800.0,0.0004]
[1750441981271,0.1945623,102790.0,102780.0,0.8514094]
[1750441981467,0.5553623,102790.0,102780.0,0.9622094]
[1750441981668,0.6736623,102790.0,102780.0,0.9614094]
[1750441981869,0.7972623,102790.0,102780.0,0.9614094]
[1750441982071,0.7972623,102790.0,102780.0,0.9618094]
[1750441982265,0.2419,102790.0,102780.0,1.55016505]
[1750441982565,0.0486369,102800.0,102780.0,2.88346685]
[1750441982872,0.1945623,102790.0,102780.0,0.29341445]
[1750441983061,0.4404623,102790.0,102780.0,1.47128]
[1750441983369,0.4404623,102790.0,102780.0,1.7134894]
[1750441983571,0.4404623,102790.0,102780.0,1.7178894]
[1750441983764,0.8012623,102790.0,102780.0,0.028]
[1750441983970,0.8012623,102790.0,102780.0,0.0284]
[1750441984561,0.4404623,102790.0,102780.0,0.0284]
[1750441984771,0.4404623,102790.0,102780.0,0.028]
[1750441984958,0.8012623,102790.0,102780.0,0.0284]
[1750441985162,0.2432802,102760.0,102740.0,0.19722168]
[1750441985474,0.311138,102750.0,102740.0,0.71337328]
[1750441985665,0.311138,102750.0,102740.0,0.35257328]
[1750441986267,0.311138,102750.0,102740.0,0.80867028]
[1750441986571,0.311138,102750.0,102740.0,0.81367028]
[1750441986872,0.311138,102750.0,102740.0,0.61901328]
[1750441987061,0.311138,102750.0,102740.0,0.61201328]
[1750441987265,0.671938,102750.0,102740.0,0.61341328]
[1750441987471,0.671938,102750.0,102740.0,0.61301328]
[1750441987774,0.671938,102750.0,102740.0,0.61341328]
[1750441988066,0.1165,102750.0,102740.0,0.80415028]
[1750441988273,0.1165,102750.0,102740.0,1.75535968]
[1750441988465,0.2401,102750.0,102740.0,1.75495968]
[1750441988767,0.0835036,102750.0,102740.0,1.75535968]
[1750441988966,0.001,102750.0,102740.0,1.75535968]
[1750441989172,0.001,102750.0,102740.0,1.87805968]
[1750441989374,0.1239,102770.0,102760.0,0.1946191]
[1750441989565,0.01623556,102780.0,102770.0,0.1946001]
[1750441989871,0.01623556,102780.0,102770.0,1.0411695]
[1750441990070,0.01623556,102780.0,102770.0,1.1638695]
[1750441990268,0.01623556,102780.0,102770.0,1.7046695]
[1750441990465,0.02040963,102790.0,102780.0,0.1945812]
[1750441990672,0.02040963,102790.0,102780.0,1.7142306]
[1750441990869,0.02040963,102790.0,102780.0,2.1977306]
[1750441991469,0.02040963,102790.0,102780.0,1.5943212]
[1750441991470,0.21497193,102790.0,102780.0,1.5943212]
[1750441991663,0.21497193,102790.0,102780.0,1.8369306]
[1750441991863,0.81887193,102790.0,102780.0,1.2335212]
[1750441992077,0.82587193,102790.0,102780.0,1.2335212]
[1750441992265,0.27050963,102790.0,102780.0,1.2335212]
[1750441992468,0.02740963,102790.0,102780.0,2.1977306]
[1750441992771,0.03240963,102790.0,102780.0,2.4577306]
[1750441992969,0.03240963,102790.0,102780.0,2.28423205]
[1750441993269,0.03240963,102790.0,102780.0,2.47881605]
[1750441993474,0.01617407,102790.0,102780.0,2.47881605]
[1750441994872,0.00417407,102790.0,102780.0,2.47881605]
[1750441995070,0.00917407,102790.0,102780.0,2.47881605]
[1750441995676,0.00917407,102790.0,102780.0,2.50786392]
[1750441995972,0.00717407,102790.0,102780.0,2.47881605]
[1750441996175,0.00517407,102790.0,102780.0,2.47881605]
[1750441996375,0.00517407,102790.0,102780.0,2.52711205]
[1750441997262,0.00517407,102790.0,102780.0,2.72169605]
[1750441997467,0.00517407,102790.0,102780.0,2.75074392]
[1750441997974,0.00517407,102790.0,102780.0,2.72169605]
[1750441998368,0.00517407,102790.0,102780.0,2.75074392]
[1750441998568,0.00517407,102790.0,102780.0,2.72169605]
[1750441999974,0.00517407,102790.0,102780.0,2.55615992]
[1750442001279,0.00517407,102790.0,102780.0,3.40131205]
[1750442001469,0.00517407,102790.0,102780.0,3.43035992]
[1750442001871,0.00517407,102790.0,102780.0,3.40131205]
[1750442002066,0.00517407,102790.0,102780.0,2.32379205]
[1750442002368,0.19973637,102790.0,102780.0,1.5330812]
[1750442002569,0.68393637,102790.0,102780.0,0.12]
[1750442002771,0.68393637,102790.0,102780.0,0.953]
[1750442002971,0.68393637,102790.0,102780.0,0.12]
[1750442003180,0.68393637,102790.0,102780.0,0.95336]
[1750442003478,0.68393637,102790.0,102780.0,0.12]
[1750442003678,0.68393637,102790.0,102780.0,0.3149812]
[1750442003873,0.48937407,102790.0,102780.0,0.74489205]
[1750442004075,0.00517407,102790.0,102780.0,1.10569205]
[1750442004278,0.00517407,102790.0,102780.0,2.50531205]
[1750442004667,0.00517407,102790.0,102780.0,2.53435992]
[1750442005072,0.00517407,102790.0,102780.0,2.65525992]
[1750442005678,0.00517407,102790.0,102780.0,2.6940302]
[1750442005981,0.00517407,102790.0,102780.0,2.72282482]
[1750442006275,0.01623362,102800.0,102790.0,0.1945622]
[1750442006477,0.01623362,102800.0,102790.0,2.36263245]
[1750442006681,0.13379344,102820.0,102810.0,0.1945244]
[1750442006881,0.13379344,102820.0,102810.0,2.40131525]
[1750442007782,0.13379344,102820.0,102810.0,1.9714044]
[1750442007981,0.01589344,102820.0,102810.0,2.59996124]
[1750442008280,0.02389344,102820.0,102810.0,2.98975481]
[1750442008483,0.02806751,102820.0,102810.0,3.11835481]
[1750442008676,0.02806751,102820.0,102810.0,3.3515422]
[1750442009082,0.01217407,102820.0,102810.0,3.24075481]
[1750442009381,0.001,102830.0,102820.0,0.1945055]
[1750442009577,1e-07,102830.0,102820.0,1.56307575]
[1750442009782,1e-07,102830.0,102820.0,2.13542224]
[1750442010380,1e-07,102830.0,102820.0,2.15316544]
[1750442010882,1e-07,102830.0,102820.0,2.12428505]
[1750442011277,0.0020001,102830.0,102820.0,2.12428505]
[1750442011475,0.0050001,102830.0,102820.0,2.12428505]
[1750442011677,0.0050001,102830.0,102820.0,2.08562565]
[1750442012084,0.0050001,102830.0,102820.0,1.59562165]
[1750442012281,0.0050001,102830.0,102820.0,3.54582165]
[1750442012679,0.0050001,102830.0,102820.0,3.54622165]
[1750442012878,0.0050001,102830.0,102820.0,3.72106824]
[1750442013977,0.0050001,102830.0,102820.0,3.72094824]
[1750442014685,0.0050001,102830.0,102820.0,3.72050824]
[1750442015083,0.00417407,102850.0,102840.0,0.1944676]
[1750442015385,0.00379432,102850.0,102840.0,2.33558248]
[1750442015583,0.001,102890.0,102880.0,0.194392]
[1750442015788,0.1185,102890.0,102880.0,3.43886944]
[1750442015984,0.1185,102890.0,102880.0,4.04362688]
[1750442016178,0.1185,102920.0,102910.0,0.1943353]
[1750442016383,0.1185,102920.0,102910.0,2.23321274]
[1750442016888,0.1185,102920.0,102910.0,2.08739484]
[1750442017082,0.1185,102920.0,102910.0,1.84335484]
[1750442017290,0.3128165,102920.0,102910.0,0.2243353]
[1750442017583,1.1179525,102920.0,102910.0,0.2243353]
[1750442017887,0.1943542,102900.0,102890.0,0.01850954]
[1750442018081,0.5551542,102900.0,102890.0,1.28572264]
[1750442018277,0.6767542,102900.0,102890.0,1.28572264]
[1750442018477,0.8005542,102900.0,102890.0,1.28572264]
[1750442018682,0.4397542,102900.0,102890.0,1.28572264]
[1750442018882,0.2454,102900.0,102890.0,1.28572264]
[1750442019188,0.3718,102900.0,102890.0,1.73466218]
[1750442019486,0.2474,102900.0,102890.0,2.40546218]
[1750442019676,0.2474,102900.0,102890.0,2.64496218]
[1750442019883,0.1258,102900.0,102890.0,2.64496218]
[1750442020178,0.005,102900.0,102890.0,2.64496218]
[1750442021287,0.005,102900.0,102890.0,2.64028218]
[1750442021589,0.005,102900.0,102890.0,2.71791418]
[1750442022288,0.005,102900.0,102890.0,2.71711418]
[1750442022487,0.1289,102900.0,102890.0,2.71711418]
[1750442022686,0.005,102900.0,102890.0,2.71671418]
[1750442022883,0.001,102920.0,102910.0,0.1943353]
[1750442023082,0.001,102920.0,102910.0,2.52923484]
[1750442023283,0.1249,102920.0,102910.0,2.52923484]
[1750442023785,0.001,102920.0,102910.0,2.52923484]
[1750442023986,0.007,102920.0,102910.0,2.65093484]
[1750442024587,0.01117407,102920.0,102910.0,2.77483484]
[1750442025491,0.01117407,102920.0,102910.0,2.77583484]
[1750442025696,0.007,102920.0,102910.0,2.77583484]
[1750442025990,0.007,102920.0,102910.0,3.01543484]
[1750442026185,0.007,102920.0,102910.0,3.03318917]
[1750442026383,0.001,102920.0,102910.0,3.03318917]
[1750442026581,0.001,102920.0,102910.0,2.60624963]
[1750442026790,0.13974682,102930.0,102920.0,0.1943164]
[1750442027095,0.13974682,102930.0,102920.0,1.42795594]
[1750442027284,0.13974682,102930.0,102920.0,1.55585594]
[1750442027686,0.01584682,102930.0,102920.0,1.55585594]
[1750442028696,0.001,102950.0,102940.0,0.1942787]
[1750442028989,0.1284,102950.0,102940.0,2.87449708]
[1750442029195,0.1284,102950.0,102940.0,2.99249708]
[1750442029393,0.2486,102950.0,102940.0,3.42143662]
[1750442029593,0.1284,102950.0,102940.0,3.73143662]
[1750442029793,0.1284,102950.0,102940.0,3.85743662]
[1750442029989,0.1284,102950.0,102940.0,2.18667662]
[1750442030189,0.46200007,102950.0,102940.0,1.45693708]
[1750442030394,0.46200007,102950.0,102940.0,1.10693708]
[1750442030593,0.46200007,102950.0,102940.0,2.17221708]
[1750442030995,0.46300007,102950.0,102940.0,2.17261708]
[1750442031298,0.46300007,102950.0,102940.0,2.96179662]
[1750442031490,0.46300007,102950.0,102940.0,2.96219662]
[1750442033292,0.46300007,102950.0,102940.0,2.60139662]
[1750442033894,0.46300007,102950.0,102940.0,2.17245708]
[1750442034997,0.82380007,102950.0,102940.0,0.91305838]
[1750442035298,0.26874027,102950.0,102940.0,2.59987662]
[1750442035492,0.26874027,102950.0,102940.0,2.96107662]
[1750442035692,0.46300007,102950.0,102940.0,2.96107662]
[1750442035900,0.46300007,102950.0,102940.0,2.60027662]
[1750442036398,0.46300007,102950.0,102940.0,2.17133708]
[1750442036597,0.82380007,102950.0,102940.0,2.17133708]
[1750442036794,0.82380007,102950.0,102940.0,2.77451887]
[1750442037006,0.82380007,102950.0,102940.0,2.77491887]
[1750442037293,0.82380007,102950.0,102940.0,1.10733708]
[1750442037294,1.01808007,102950.0,102940.0,1.10733708]
[1750442037502,0.3399965,102940.0,102930.0,0.24012]
[1750442037795,0.19847157,102930.0,102920.0,0.3400341]
[1750442037996,0.83829584,102930.0,102910.0,1.23007953]
[1750442038196,0.6722164,102920.0,102910.0,0.54897483]
[1750442038501,0.6722164,102920.0,102910.0,0.1947353]
[1750442038502,1.27579819,102920.0,102910.0,0.1947353]
[1750442038689,0.1943353,102910.0,102900.0,0.5802222]
[1750442038894,0.68820496,102910.0,102900.0,0.5902222]
[1750442039188,0.68820496,102910.0,102900.0,0.5416337]
[1750442039393,0.68820496,102910.0,102900.0,0.5420337]
[1750442039794,0.32740496,102910.0,102900.0,0.3019137]
[1750442039996,0.32740496,102910.0,102900.0,0.90549549]
[1750442040198,0.13306966,102910.0,102900.0,0.90549549]
[1750442040502,0.32740496,102910.0,102900.0,0.91149549]
[1750442040698,0.32740496,102910.0,102900.0,0.3079137]
[1750442040898,0.13306966,102910.0,102900.0,0.90749549]
[1750442041093,0.32840496,102910.0,102900.0,0.3039137]
[1750442041298,0.13706966,102910.0,102900.0,0.90549549]
[1750442041496,0.33140496,102910.0,102900.0,0.3019137]
[1750442041706,0.69220496,102910.0,102900.0,0.5420337]
[1750442041895,0.80260496,102910.0,102900.0,0.5420337]
[1750442042197,0.80360496,102910.0,102900.0,0.25052]
[1750442042397,1.85153875,102910.0,102900.0,0.0004]
[1750442042601,1.85153875,102910.0,102880.0,1.358542]
[1750442042602,0.21057713,102890.0,102880.0,1.11556]
[1750442042797,0.57137713,102890.0,102880.0,0.434512]
[1750442042999,0.79247713,102890.0,102880.0,0.434912]
[1750442043193,0.43167713,102890.0,102880.0,0.434912]
[1750442043501,0.98686913,102890.0,102880.0,0.0004]
[1750442043701,0.98686913,102890.0,102880.0,0.002]
[1750442043893,0.98686913,102890.0,102880.0,0.197392]
[1750442044098,0.98686913,102890.0,102880.0,0.197792]
[1750442044303,0.98686913,102890.0,102880.0,0.0034]
[1750442044599,0.98986913,102890.0,102880.0,0.0024]
[1750442044796,0.194392,102880.0,102870.0,1.3051998]
[1750442045002,0.1155,102880.0,102870.0,1.90878159]
[1750442045195,0.42248463,102890.0,102880.0,0.194392]
[1750442045395,0.42248463,102890.0,102880.0,0.324392]
[1750442045692,0.58658193,102890.0,102880.0,0.194392]
[1750442045896,0.6426806,102890.0,102880.0,0.194392]
[1750442046104,0.66457851,102890.0,102880.0,0.194392]
[1750442046497,0.66457851,102890.0,102880.0,0.194792]
[1750442046702,0.14579791,102890.0,102880.0,0.79837379]
[1750442046891,0.02289791,102890.0,102880.0,1.38967379]
[1750442047200,0.00417066,102890.0,102880.0,2.43805558]
[1750442047410,0.233,102920.0,102910.0,0.1943353]
[1750442047705,0.233,102920.0,102910.0,2.46732239]
[1750442047706,0.21010131,102920.0,102910.0,2.46732239]
[1750442048005,0.01578391,102920.0,102910.0,2.69782239]
[1750442048205,0.21010031,102920.0,102910.0,2.69782239]
[1750442048504,0.01678391,102920.0,102910.0,2.69782239]
[1750442048707,0.21110031,102920.0,102910.0,2.69782239]
[1750442049096,0.21110031,102920.0,102910.0,1.9833406]
[1750442049300,0.32450031,102920.0,102910.0,2.58692239]
[1750442049499,0.13035086,102920.0,102910.0,2.58692239]
[1750442049803,0.01695086,102920.0,102910.0,2.79992239]
[1750442050002,0.01895086,102920.0,102910.0,2.92182239]
[1750442050206,0.003,102920.0,102910.0,2.33552869]
[1750442050505,0.1973164,102920.0,102910.0,1.41970518]
[1750442050804,0.003,102920.0,102910.0,2.47762518]
[1750442051011,0.003,102920.0,102910.0,2.91504721]
[1750442052406,0.003,102920.0,102910.0,2.83842518]
[1750442053605,0.1973164,102920.0,102910.0,1.17732339]
[1750442054007,0.3192164,102920.0,102910.0,2.83770518]
[1750442054203,0.1249,102920.0,102910.0,2.83730518]
[1750442054400,0.1249,102920.0,102910.0,2.47690518]
[1750442054907,0.1249,102920.0,102910.0,2.83770518]
[1750442055404,0.003,102920.0,102910.0,2.83770518]
[1750442056909,0.003,102920.0,102910.0,2.23412339]
[1750442057109,0.003,102920.0,102910.0,2.22464653]
[1750442057406,0.002,102920.0,102910.0,2.82762832]
[1750442057610,0.5216525,102930.0,102920.0,0.1943164]
[1750442057810,0.5216525,102930.0,102920.0,0.18167993]
[1750442058309,0.1943164,102920.0,102910.0,0.24931123]
[1750442058515,1.39219819,102920.0,102910.0,0.26484809]
[1750442058714,1.70883419,102920.0,102910.0,0.45838339]
[1750442058916,1.1052524,102920.0,102910.0,1.06236518]
[1750442059111,0.6066764,102930.0,102920.0,0.1943164]
[1750442059412,0.5944,102930.0,102920.0,0.79789819]
[1750442059614,0.7856975,102930.0,102920.0,0.79789819]